[Event "Late-Titled-Tuesday-Blitz-November-28-2023"]
[Site "Chess.com"]
[Date "2023.11.28"]
[Round "3"]
[White "venturov"]
[Black "Mykola-Bortnyk"]
[Result "0-1"]
[WhiteElo "2493"]
[BlackElo "3003"]
[TimeControl "180+1"]
[EndTime "14:27:54 PST"]
[Termination "Mykola-Bortnyk won by checkmate"]

1. Nf3 {[%clk 0:03:00.9]} 1... c5 {[%clk 0:02:57.2]} 2. c4 {[%clk 0:02:58.1]}
2... Nc6 {[%clk 0:02:56.6]} 3. g3 {[%clk 0:02:56.9]} 3... g6 {[%clk 0:02:56.2]}
4. Bg2 {[%clk 0:02:55.3]} 4... Bg7 {[%clk 0:02:56.7]} 5. Nc3 {[%clk 0:02:52.4]}
5... d6 {[%clk 0:02:52.5]} 6. a3 {[%clk 0:02:50.5]} 6... h5 {[%clk 0:02:50.5]}
7. Rb1 {[%clk 0:02:46]} 7... a5 {[%clk 0:02:50.2]} 8. d3 {[%clk 0:02:41.2]} 8...
Nh6 {[%clk 0:02:50.1]} 9. Bd2 {[%clk 0:02:40.4]} 9... Nf5 {[%clk 0:02:49.1]} 10.
O-O {[%clk 0:02:05.8]} 10... h4 {[%clk 0:02:46]} 11. Ne1 {[%clk 0:02:00.2]}
11... hxg3 {[%clk 0:02:38.8]} 12. hxg3 {[%clk 0:01:59.8]} 12... Bd7 {[%clk
0:01:47]} 13. Nc2 {[%clk 0:01:58.7]} 13... Nfd4 {[%clk 0:01:45.5]} 14. Nxd4
{[%clk 0:01:51.3]} 14... Bxd4 {[%clk 0:01:44.6]} 15. e3 {[%clk 0:01:46.1]} 15...
Bg7 {[%clk 0:01:44.8]} 16. Nd5 {[%clk 0:01:42.4]} 16... Ne5 {[%clk 0:01:42.1]}
17. Bc3 {[%clk 0:01:35]} 17... e6 {[%clk 0:01:14.9]} 18. Nf4 {[%clk 0:01:34]}
18... Bc6 {[%clk 0:01:06.1]} 19. b4 {[%clk 0:01:31.2]} 19... axb4 {[%clk
0:00:51.3]} 20. axb4 {[%clk 0:01:32.1]} 20... Qg5 {[%clk 0:00:47.7]} 21. e4
{[%clk 0:01:14.2]} 21... Nf3+ {[%clk 0:00:43]} 22. Qxf3 {[%clk 0:01:10.1]} 22...
Bxc3 {[%clk 0:00:43.9]} 23. b5 {[%clk 0:01:04.3]} 23... Bd7 {[%clk 0:00:43.2]}
24. e5 {[%clk 0:00:47.9]} 24... Bxe5 {[%clk 0:00:31.3]} 25. Qxb7 {[%clk
0:00:45]} 25... Ke7 {[%clk 0:00:29]} 26. Ne2 {[%clk 0:00:26.4]} 26... Qh6 {[%clk
0:00:25.6]} 27. Rfe1 {[%clk 0:00:22]} 27... Ra2 {[%clk 0:00:25.5]} 28. Bc6
{[%clk 0:00:20.1]} 28... Qh2+ {[%clk 0:00:22.6]} 29. Kf1 {[%clk 0:00:19.5]}
29... Qh3+ {[%clk 0:00:23.2]} 30. Kg1 {[%clk 0:00:17.5]} 30... Rd8 {[%clk
0:00:08.8]} 31. Bxd7 {[%clk 0:00:17.8]} 31... Rxd7 {[%clk 0:00:09.7]} 32. Qg2
{[%clk 0:00:18.2]} 32... Qh5 {[%clk 0:00:09.9]} 33. f4 {[%clk 0:00:17.7]} 33...
Bd4+ {[%clk 0:00:09.6]} 34. Nxd4 {[%clk 0:00:18.1]} 34... Rxg2+ {[%clk
0:00:09.6]} 35. Kxg2 {[%clk 0:00:17.2]} 35... cxd4 {[%clk 0:00:10.5]} 36. b6
{[%clk 0:00:15]} 36... Rb7 {[%clk 0:00:10.8]} 37. Rb5 {[%clk 0:00:11.5]} 37...
Qh8 {[%clk 0:00:09]} 38. Ra1 {[%clk 0:00:09.3]} 38... Qb8 {[%clk 0:00:09]} 39.
Ra6 {[%clk 0:00:09]} 39... Kf6 {[%clk 0:00:09.8]} 40. Kf3 {[%clk 0:00:09.1]}
40... Qc8 {[%clk 0:00:09.2]} 41. g4 {[%clk 0:00:07.7]} 41... Qc6+ {[%clk
0:00:09.3]} 42. Kg3 {[%clk 0:00:07.3]} 42... Qh1 {[%clk 0:00:09.7]} 43. g5+
{[%clk 0:00:07]} 43... Kg7 {[%clk 0:00:10.4]} 44. Ra7 {[%clk 0:00:07.4]} 44...
Qe1+ {[%clk 0:00:09.8]} 45. Kg4 {[%clk 0:00:07.5]} 45... Qe2+ {[%clk 0:00:09.5]}
46. Kg3 {[%clk 0:00:07.9]} 46... Qxd3+ {[%clk 0:00:10]} 47. Kg4 {[%clk
0:00:08.6]} 47... Qxc4 {[%clk 0:00:10.4]} 48. Rxb7 {[%clk 0:00:06.7]} 48... Qxb5
{[%clk 0:00:10.9]} 49. Rb8 {[%clk 0:00:06.2]} 49... d3 {[%clk 0:00:11.3]} 50. b7
{[%clk 0:00:05.8]} 50... d2 {[%clk 0:00:11.6]} 51. f5 {[%clk 0:00:04.4]} 51...
d1=Q+ {[%clk 0:00:11.4]} 52. Kh4 {[%clk 0:00:04.5]} 52... Qc4+ {[%clk
0:00:11.3]} 53. Kg3 {[%clk 0:00:04.8]} 53... Qcg4+ {[%clk 0:00:11.6]} 54. Kh2
{[%clk 0:00:04.9]} 54... Qdg1# {[%clk 0:00:12.2]} 0-1

[Event "Late-Titled-Tuesday-Blitz-November-28-2023"]
[Site "Chess.com"]
[Date "2023.11.28"]
[Round "3"]
[White "becemix"]
[Black "Mikhail_Golubev"]
[Result "1-0"]
[WhiteElo "2391"]
[BlackElo "2583"]
[TimeControl "180+1"]
[EndTime "14:28:00 PST"]
[Termination "becemix won on time"]

1. e4 {[%clk 0:02:56.1]} 1... c5 {[%clk 0:02:59.5]} 2. d4 {[%clk 0:02:56]} 2...
cxd4 {[%clk 0:02:59]} 3. c3 {[%clk 0:02:56.6]} 3... dxc3 {[%clk 0:02:59.5]} 4.
Nxc3 {[%clk 0:02:57.5]} 4... Nc6 {[%clk 0:02:59.6]} 5. Nf3 {[%clk 0:02:57.7]}
5... d6 {[%clk 0:02:59.8]} 6. Bc4 {[%clk 0:02:57.6]} 6... a6 {[%clk 0:02:59]} 7.
O-O {[%clk 0:02:56.9]} 7... Nf6 {[%clk 0:02:59]} 8. Bg5 {[%clk 0:02:56.8]} 8...
Bg4 {[%clk 0:02:37.4]} 9. Qb3 {[%clk 0:02:55.9]} 9... e6 {[%clk 0:02:22]} 10.
Qxb7 {[%clk 0:02:55.3]} 10... Na5 {[%clk 0:02:14.3]} 11. Qb4 {[%clk 0:02:55.3]}
11... Bxf3 {[%clk 0:01:44.6]} 12. Qa4+ {[%clk 0:02:42.5]} 12... Ke7 {[%clk
0:01:24.3]} 13. gxf3 {[%clk 0:01:55.5]} 13... Nxc4 {[%clk 0:01:23.8]} 14. Qxc4
{[%clk 0:01:55.5]} 14... h6 {[%clk 0:01:24.1]} 15. Bh4 {[%clk 0:01:52]} 15... g5
{[%clk 0:01:22.5]} 16. Bg3 {[%clk 0:01:52.1]} 16... Nh5 {[%clk 0:01:12.6]} 17.
Rfd1 {[%clk 0:01:51.9]} 17... Nxg3 {[%clk 0:01:11.6]} 18. hxg3 {[%clk 0:01:52]}
18... Bg7 {[%clk 0:01:08.8]} 19. Rac1 {[%clk 0:01:51.9]} 19... Re8 {[%clk
0:00:55.6]} 20. b3 {[%clk 0:01:48.3]} 20... Kf8 {[%clk 0:00:54.2]} 21. Ne2
{[%clk 0:01:36.9]} 21... Kg8 {[%clk 0:00:46.2]} 22. Qd3 {[%clk 0:01:35.8]} 22...
Qa5 {[%clk 0:00:40.2]} 23. Rc2 {[%clk 0:01:14.7]} 23... Rad8 {[%clk 0:00:39.7]}
24. f4 {[%clk 0:01:12.6]} 24... gxf4 {[%clk 0:00:36.5]} 25. Nxf4 {[%clk
0:01:13.5]} 25... Qg5 {[%clk 0:00:24.9]} 26. Kg2 {[%clk 0:01:11.5]} 26... Be5
{[%clk 0:00:21.5]} 27. Nh3 {[%clk 0:01:08]} 27... Qg6 {[%clk 0:00:18.7]} 28. Rc6
{[%clk 0:00:59]} 28... d5 {[%clk 0:00:16]} 29. exd5 {[%clk 0:00:58.4]} 29...
Qxd3 {[%clk 0:00:13.7]} 30. Rxd3 {[%clk 0:00:59.3]} 30... Rxd5 {[%clk
0:00:12.8]} 31. Rxd5 {[%clk 0:00:59.2]} 31... exd5 {[%clk 0:00:13]} 32. Rxa6
{[%clk 0:00:56.9]} 32... d4 {[%clk 0:00:13.2]} 33. Nf4 {[%clk 0:00:49.2]} 33...
Bxf4 {[%clk 0:00:10.7]} 34. gxf4 {[%clk 0:00:50.1]} 34... Rd8 {[%clk 0:00:10.2]}
35. Rc6 {[%clk 0:00:49.6]} 35... d3 {[%clk 0:00:09.3]} 36. Rc1 {[%clk
0:00:49.9]} 36... Kg7 {[%clk 0:00:08.1]} 37. Rd1 {[%clk 0:00:49.4]} 37... h5
{[%clk 0:00:07.5]} 38. a4 {[%clk 0:00:47.7]} 38... Kf6 {[%clk 0:00:06.9]} 39. a5
{[%clk 0:00:45.9]} 39... Kf5 {[%clk 0:00:06.9]} 40. Kf3 {[%clk 0:00:46.3]} 40...
Rd4 {[%clk 0:00:06.9]} 41. a6 {[%clk 0:00:46.4]} 41... Rxf4+ {[%clk 0:00:06.3]}
42. Kg3 {[%clk 0:00:46.8]} 42... Rg4+ {[%clk 0:00:05.9]} 43. Kh3 {[%clk
0:00:45.7]} 43... Rg6 {[%clk 0:00:06.1]} 44. Rxd3 {[%clk 0:00:43.2]} 44... Rxa6
{[%clk 0:00:04.8]} 45. Rd5+ {[%clk 0:00:43.6]} 45... Kg6 {[%clk 0:00:04.7]} 46.
Rb5 {[%clk 0:00:43.8]} 46... Rf6 {[%clk 0:00:04.1]} 47. Kg3 {[%clk 0:00:43.8]}
47... Rd6 {[%clk 0:00:03.8]} 48. f3 {[%clk 0:00:43.4]} 48... f6 {[%clk
0:00:03.9]} 49. b4 {[%clk 0:00:42.7]} 49... Rd4 {[%clk 0:00:03.3]} 50. Rb8
{[%clk 0:00:42.6]} 50... Rc4 {[%clk 0:00:03]} 51. b5 {[%clk 0:00:42.7]} 51...
Rb4 {[%clk 0:00:03]} 52. b6 {[%clk 0:00:42.9]} 52... Kg7 {[%clk 0:00:02.2]} 53.
f4 {[%clk 0:00:38.2]} 53... Kf7 {[%clk 0:00:01.8]} 54. Kf3 {[%clk 0:00:28.8]}
54... Kg7 {[%clk 0:00:01.9]} 55. Ke3 {[%clk 0:00:28.4]} 1-0

[Event "Late-Titled-Tuesday-Blitz-November-28-2023"]
[Site "Chess.com"]
[Date "2023.11.28"]
[Round "3"]
[White "NikolasTheiss"]
[Black "Abduzhaparov"]
[Result "0-1"]
[WhiteElo "2545"]
[BlackElo "2409"]
[TimeControl "180+1"]
[EndTime "14:28:01 PST"]
[Termination "Abduzhaparov won by resignation"]

1. e4 {[%clk 0:02:55.6]} 1... d6 {[%clk 0:03:00.9]} 2. d4 {[%clk 0:02:54.5]}
2... Nf6 {[%clk 0:03:01.8]} 3. Nc3 {[%clk 0:02:51.6]} 3... e5 {[%clk 0:03:02.7]}
4. Nf3 {[%clk 0:02:46.9]} 4... Nbd7 {[%clk 0:03:02.9]} 5. h3 {[%clk 0:02:42.5]}
5... Be7 {[%clk 0:03:03.2]} 6. g4 {[%clk 0:02:42.6]} 6... c6 {[%clk 0:03:01.4]}
7. a4 {[%clk 0:02:38]} 7... a5 {[%clk 0:02:58.9]} 8. Bc4 {[%clk 0:02:36.9]} 8...
O-O {[%clk 0:02:56.1]} 9. Be3 {[%clk 0:02:30.1]} 9... exd4 {[%clk 0:02:53.7]}
10. Nxd4 {[%clk 0:02:28.7]} 10... Ne5 {[%clk 0:02:53]} 11. Be2 {[%clk
0:02:28.8]} 11... Ng6 {[%clk 0:02:51.8]} 12. Nf5 {[%clk 0:02:24]} 12... d5
{[%clk 0:02:47.2]} 13. Nxe7+ {[%clk 0:02:20.8]} 13... Qxe7 {[%clk 0:02:40.6]}
14. exd5 {[%clk 0:02:15.4]} 14... Nxd5 {[%clk 0:02:41]} 15. Nxd5 {[%clk
0:02:12.9]} 15... cxd5 {[%clk 0:02:41.9]} 16. Qxd5 {[%clk 0:02:12.8]} 16... Qb4+
{[%clk 0:02:37.5]} 17. Kf1 {[%clk 0:01:26.2]} 17... Qxb2 {[%clk 0:02:33.9]} 18.
Qa2 {[%clk 0:01:00.1]} 18... Qe5 {[%clk 0:02:21.3]} 19. Rb1 {[%clk 0:00:53]}
19... Be6 {[%clk 0:02:20.2]} 20. Qb2 {[%clk 0:00:53.1]} 20... Qe4 {[%clk
0:02:16.8]} 21. Rg1 {[%clk 0:00:42.9]} 21... Bd5 {[%clk 0:02:10]} 22. Qd4 {[%clk
0:00:28.3]} 22... Rac8 {[%clk 0:01:51.8]} 23. Qxe4 {[%clk 0:00:22]} 23... Bxe4
{[%clk 0:01:52.7]} 24. Rb5 {[%clk 0:00:20.5]} 24... Rxc2 {[%clk 0:01:40]} 25.
Rxa5 {[%clk 0:00:18.6]} 25... Rfc8 {[%clk 0:01:38.4]} 26. f3 {[%clk 0:00:18.7]}
26... Bc6 {[%clk 0:01:33]} 27. Kf2 {[%clk 0:00:15.5]} 27... Ra2 {[%clk 0:01:30]}
28. Rb1 {[%clk 0:00:15.3]} 28... Nh4 {[%clk 0:01:23.6]} 29. Bd4 {[%clk
0:00:10.8]} 29... Nxf3 {[%clk 0:01:07.4]} 30. Rb2 {[%clk 0:00:11.2]} 30... Rxb2
{[%clk 0:01:00.9]} 31. Bxb2 {[%clk 0:00:12.1]} 31... Nd2 {[%clk 0:01:01.2]} 32.
Be5 {[%clk 0:00:11.3]} 32... f6 {[%clk 0:00:55.3]} 33. Bg3 {[%clk 0:00:11.1]}
33... Ne4+ {[%clk 0:00:53.9]} 34. Kf3 {[%clk 0:00:10.9]} 34... Nxg3+ {[%clk
0:00:54.8]} 35. Kxg3 {[%clk 0:00:11.7]} 35... Re8 {[%clk 0:00:53.3]} 36. Bb5
{[%clk 0:00:11.8]} 36... Re3+ {[%clk 0:00:25.1]} 37. Kf2 {[%clk 0:00:10.9]}
37... Rxh3 {[%clk 0:00:20.8]} 38. Bxc6 {[%clk 0:00:10.7]} 38... bxc6 {[%clk
0:00:20.5]} 39. Ra8+ {[%clk 0:00:11.5]} 39... Kf7 {[%clk 0:00:20.3]} 40. Rc8
{[%clk 0:00:12.4]} 40... Ra3 {[%clk 0:00:18.3]} 41. Rc7+ {[%clk 0:00:12.5]}
41... Kg6 {[%clk 0:00:17.8]} 42. Ra7 {[%clk 0:00:11.6]} 42... c5 {[%clk
0:00:15.4]} 43. a5 {[%clk 0:00:11.5]} 43... c4 {[%clk 0:00:15.1]} 44. a6 {[%clk
0:00:11.8]} 44... c3 {[%clk 0:00:14.6]} 45. Rc7 {[%clk 0:00:12.3]} 45... Ra2+
{[%clk 0:00:13.6]} 46. Kg3 {[%clk 0:00:12.2]} 46... Rxa6 {[%clk 0:00:14.5]} 47.
Rxc3 {[%clk 0:00:12.1]} 47... Ra4 {[%clk 0:00:14.5]} 48. Rf3 {[%clk 0:00:12.6]}
48... h6 {[%clk 0:00:13.6]} 49. Rf5 {[%clk 0:00:12.8]} 49... Ra3+ {[%clk
0:00:12.6]} 50. Kh4 {[%clk 0:00:13.2]} 50... Re3 {[%clk 0:00:11.8]} 51. Rh5
{[%clk 0:00:13.6]} 51... Re5 {[%clk 0:00:11.5]} 52. Rxe5 {[%clk 0:00:11.3]}
52... fxe5 {[%clk 0:00:12.4]} 53. Kg3 {[%clk 0:00:12]} 53... Kg5 {[%clk
0:00:12.3]} 54. Kf3 {[%clk 0:00:12.9]} 54... h5 {[%clk 0:00:12.5]} 55. gxh5
{[%clk 0:00:13]} 55... Kxh5 {[%clk 0:00:13.4]} 56. Ke4 {[%clk 0:00:13.7]} 56...
Kh4 {[%clk 0:00:13.3]} 57. Kxe5 {[%clk 0:00:14.3]} 57... g5 {[%clk 0:00:13.6]}
58. Ke4 {[%clk 0:00:15.2]} 58... g4 {[%clk 0:00:13.9]} 59. Ke3 {[%clk
0:00:15.2]} 59... Kh3 {[%clk 0:00:14.2]} 60. Kf2 {[%clk 0:00:16.1]} 60... Kh2
{[%clk 0:00:14.3]} 61. Kf1 {[%clk 0:00:16.1]} 61... g3 {[%clk 0:00:15.2]} 62.
Ke2 {[%clk 0:00:16.4]} 62... g2 {[%clk 0:00:16.1]} 63. Kf3 {[%clk 0:00:17.3]}
63... g1=Q {[%clk 0:00:17]} 0-1

[Event "Late-Titled-Tuesday-Blitz-November-28-2023"]
[Site "Chess.com"]
[Date "2023.11.28"]
[Round "3"]
[White "colegiodemadrid"]
[Black "MetiForce"]
[Result "0-1"]
[WhiteElo "2490"]
[BlackElo "2917"]
[TimeControl "180+1"]
[EndTime "14:28:03 PST"]
[Termination "MetiForce won on time"]

1. d4 {[%clk 0:03:00.9]} 1... f5 {[%clk 0:02:57.6]} 2. Nf3 {[%clk 0:02:50.3]}
2... Nf6 {[%clk 0:02:57.9]} 3. e3 {[%clk 0:02:44.2]} 3... g6 {[%clk 0:02:56.2]}
4. Be2 {[%clk 0:02:44.8]} 4... d6 {[%clk 0:02:57.1]} 5. O-O {[%clk 0:02:45.1]}
5... Bg7 {[%clk 0:02:58]} 6. c4 {[%clk 0:02:45.3]} 6... a5 {[%clk 0:02:58.7]} 7.
Nc3 {[%clk 0:02:43.8]} 7... O-O {[%clk 0:02:59.4]} 8. b3 {[%clk 0:02:43.6]} 8...
c6 {[%clk 0:02:59.7]} 9. Bb2 {[%clk 0:02:44]} 9... Kh8 {[%clk 0:02:59.3]} 10.
Re1 {[%clk 0:02:38.4]} 10... Qc7 {[%clk 0:02:50.7]} 11. d5 {[%clk 0:02:34.5]}
11... e5 {[%clk 0:02:48.1]} 12. dxe6 {[%clk 0:02:34.3]} 12... Bxe6 {[%clk
0:02:48.5]} 13. Qd2 {[%clk 0:02:30.9]} 13... Na6 {[%clk 0:02:48.8]} 14. Rad1
{[%clk 0:02:29.8]} 14... Rad8 {[%clk 0:02:49.1]} 15. h3 {[%clk 0:02:21.3]} 15...
Nc5 {[%clk 0:02:48.6]} 16. Qc2 {[%clk 0:02:13.1]} 16... Bg8 {[%clk 0:02:44.8]}
17. a3 {[%clk 0:02:05.3]} 17... Nfe4 {[%clk 0:02:27.6]} 18. b4 {[%clk
0:01:56.3]} 18... Nxc3 {[%clk 0:02:26.8]} 19. Bxc3 {[%clk 0:01:55.4]} 19... axb4
{[%clk 0:02:27.5]} 20. axb4 {[%clk 0:01:51.6]} 20... Ne4 {[%clk 0:02:28.1]} 21.
Bxg7+ {[%clk 0:01:47.1]} 21... Qxg7 {[%clk 0:02:29]} 22. Bd3 {[%clk 0:01:41.8]}
22... Nf6 {[%clk 0:02:22.8]} 23. b5 {[%clk 0:01:35.2]} 23... Ra8 {[%clk
0:02:19.5]} 24. Bf1 {[%clk 0:01:30.2]} 24... Ne4 {[%clk 0:02:18.9]} 25. bxc6
{[%clk 0:01:24.1]} 25... bxc6 {[%clk 0:02:19.8]} 26. Nd4 {[%clk 0:01:24.5]}
26... Rfc8 {[%clk 0:02:13.3]} 27. Be2 {[%clk 0:01:13.3]} 27... Ra3 {[%clk
0:02:00.5]} 28. Nb3 {[%clk 0:01:02.7]} 28... Rb8 {[%clk 0:01:40.8]} 29. Rb1
{[%clk 0:01:02.2]} 29... Nc3 {[%clk 0:01:35.6]} 30. Rb2 {[%clk 0:00:47.3]} 30...
Na4 {[%clk 0:01:24.6]} 31. Rbb1 {[%clk 0:00:43.4]} 31... Nc3 {[%clk 0:01:20.6]}
32. Rb2 {[%clk 0:00:43.8]} 32... c5 {[%clk 0:01:21.1]} 33. Bf1 {[%clk
0:00:39.6]} 33... Na4 {[%clk 0:01:17.1]} 34. Rbb1 {[%clk 0:00:39.4]} 34... Qc3
{[%clk 0:01:17.7]} 35. Na1 {[%clk 0:00:19]} 35... Ra8 {[%clk 0:00:57.7]} 36. Qd1
{[%clk 0:00:07.5]} 36... Qe5 {[%clk 0:00:51.7]} 37. Nc2 {[%clk 0:00:06.7]} 37...
Nc3 {[%clk 0:00:51.9]} 38. Qf3 {[%clk 0:00:02.5]} 38... Nxb1 {[%clk 0:00:49]}
39. Nxa3 {[%clk 0:00:03.2]} 39... Rxa3 {[%clk 0:00:35]} 40. Rxb1 {[%clk
0:00:03.7]} 40... d5 {[%clk 0:00:34.5]} 41. cxd5 {[%clk 0:00:03.7]} 41... Bxd5
{[%clk 0:00:34.6]} 42. Qe2 {[%clk 0:00:04.1]} 42... c4 {[%clk 0:00:33.4]} 43.
Rc1 {[%clk 0:00:04]} 43... Bf7 {[%clk 0:00:22.9]} 44. Qc2 {[%clk 0:00:04.1]}
44... c3 {[%clk 0:00:22.7]} 45. Qd3 {[%clk 0:00:03.8]} 45... Kg7 {[%clk
0:00:19.9]} 46. f4 {[%clk 0:00:04.1]} 46... Qc5 {[%clk 0:00:19.4]} 47. Kh1
{[%clk 0:00:03.2]} 47... h5 {[%clk 0:00:17.1]} 48. e4 {[%clk 0:00:03.1]} 48...
fxe4 {[%clk 0:00:16.1]} 49. Qxe4 {[%clk 0:00:04]} 49... h4 {[%clk 0:00:15.7]}
50. Bd3 {[%clk 0:00:04.3]} 50... Ra2 {[%clk 0:00:14]} 51. Rf1 {[%clk 0:00:04]}
51... Qd5 {[%clk 0:00:12.7]} 52. f5 {[%clk 0:00:02.6]} 52... Rd2 {[%clk
0:00:11.7]} 53. f6+ {[%clk 0:00:02.1]} 53... Kg8 {[%clk 0:00:12.4]} 0-1

[Event "Late-Titled-Tuesday-Blitz-November-28-2023"]
[Site "Chess.com"]
[Date "2023.11.28"]
[Round "3"]
[White "szachmistrz2500"]
[Black "Chemim21"]
[Result "1-0"]
[WhiteElo "2465"]
[BlackElo "2212"]
[TimeControl "180+1"]
[EndTime "14:28:04 PST"]
[Termination "szachmistrz2500 won on time"]

1. Nf3 {[%clk 0:03:00.9]} 1... d5 {[%clk 0:02:59.5]} 2. g3 {[%clk 0:03:00.7]}
2... c6 {[%clk 0:02:59]} 3. Bg2 {[%clk 0:03:00.6]} 3... Bf5 {[%clk 0:02:59.1]}
4. O-O {[%clk 0:03:00.7]} 4... e6 {[%clk 0:02:59.3]} 5. d3 {[%clk 0:03:00.9]}
5... h6 {[%clk 0:02:58.6]} 6. Nbd2 {[%clk 0:03:01.1]} 6... Nf6 {[%clk
0:02:57.9]} 7. Qe1 {[%clk 0:03:00.8]} 7... Bc5 {[%clk 0:02:50.9]} 8. e4 {[%clk
0:02:59.9]} 8... Bh7 {[%clk 0:02:46.9]} 9. b3 {[%clk 0:02:59.8]} 9... Nbd7
{[%clk 0:02:37.1]} 10. Bb2 {[%clk 0:02:59.3]} 10... O-O {[%clk 0:02:35.2]} 11.
Ne5 {[%clk 0:02:58.2]} 11... Nxe5 {[%clk 0:02:34.3]} 12. Bxe5 {[%clk 0:02:57.2]}
12... Nd7 {[%clk 0:02:24.4]} 13. Bb2 {[%clk 0:02:56.6]} 13... a5 {[%clk
0:02:15.9]} 14. a3 {[%clk 0:02:40.5]} 14... b5 {[%clk 0:02:11.5]} 15. Qe2 {[%clk
0:02:39.5]} 15... Re8 {[%clk 0:01:54.1]} 16. Kh1 {[%clk 0:02:36.4]} 16... Qc7
{[%clk 0:01:40.6]} 17. f4 {[%clk 0:02:35.5]} 17... f5 {[%clk 0:01:31.3]} 18. e5
{[%clk 0:02:23.3]} 18... Bf8 {[%clk 0:01:26.7]} 19. Bf3 {[%clk 0:02:07.3]} 19...
Rac8 {[%clk 0:01:25.3]} 20. h3 {[%clk 0:02:06.4]} 20... c5 {[%clk 0:01:24.9]}
21. g4 {[%clk 0:02:06.5]} 21... fxg4 {[%clk 0:01:17.8]} 22. hxg4 {[%clk
0:02:06]} 22... Qd8 {[%clk 0:01:16.5]} 23. Rf2 {[%clk 0:01:56.2]} 23... c4
{[%clk 0:01:14.8]} 24. dxc4 {[%clk 0:01:33.3]} 24... bxc4 {[%clk 0:01:12.2]} 25.
bxc4 {[%clk 0:01:33.3]} 25... dxc4 {[%clk 0:01:06.7]} 26. Nxc4 {[%clk
0:01:32.6]} 26... Qc7 {[%clk 0:01:00.9]} 27. Ne3 {[%clk 0:01:29.8]} 27... Nb6
{[%clk 0:00:54.5]} 28. Bd4 {[%clk 0:01:24.7]} 28... Nc4 {[%clk 0:00:52]} 29.
Nxc4 {[%clk 0:01:18.8]} 29... Qxc4 {[%clk 0:00:51.6]} 30. Qxc4 {[%clk
0:01:16.5]} 30... Rxc4 {[%clk 0:00:51.4]} 31. c3 {[%clk 0:01:16.8]} 31... Bc5
{[%clk 0:00:44.8]} 32. Rd2 {[%clk 0:01:10.7]} 32... Bxd4 {[%clk 0:00:40.4]} 33.
cxd4 {[%clk 0:01:10.1]} 33... Rd8 {[%clk 0:00:39.7]} 34. Rad1 {[%clk 0:01:01.1]}
34... Rc3 {[%clk 0:00:39.3]} 35. Kg2 {[%clk 0:00:59.5]} 35... Rxa3 {[%clk
0:00:38.7]} 36. d5 {[%clk 0:00:59.9]} 36... exd5 {[%clk 0:00:37.4]} 37. Bxd5+
{[%clk 0:00:58.9]} 37... Kf8 {[%clk 0:00:37.4]} 38. f5 {[%clk 0:00:59]} 38... h5
{[%clk 0:00:32.6]} 39. Bf3 {[%clk 0:00:55.7]} 39... Rxd2+ {[%clk 0:00:29.2]} 40.
Rxd2 {[%clk 0:00:56.6]} 40... hxg4 {[%clk 0:00:29]} 41. Bxg4 {[%clk 0:00:57.5]}
41... Ke7 {[%clk 0:00:23.8]} 42. f6+ {[%clk 0:00:53.2]} 42... gxf6 {[%clk
0:00:22.9]} 43. Rd7+ {[%clk 0:00:53.1]} 43... Kf8 {[%clk 0:00:19.7]} 44. exf6
{[%clk 0:00:42.1]} 44... Be4+ {[%clk 0:00:16.2]} 45. Kh2 {[%clk 0:00:36.7]}
45... Rd3 {[%clk 0:00:16.7]} 46. Ra7 {[%clk 0:00:35.4]} 46... Rd2+ {[%clk
0:00:16.7]} 47. Kg3 {[%clk 0:00:35]} 47... Bd5 {[%clk 0:00:12.5]} 48. Bh5 {[%clk
0:00:26.2]} 48... Rd3+ {[%clk 0:00:09.3]} 49. Kf4 {[%clk 0:00:25.9]} 49... a4
{[%clk 0:00:08.3]} 50. Rxa4 {[%clk 0:00:22]} 50... Bc6 {[%clk 0:00:06.6]} 51.
Rc4 {[%clk 0:00:18.9]} 51... Rd6 {[%clk 0:00:03.2]} 52. Ke5 {[%clk 0:00:18]}
52... Rd5+ {[%clk 0:00:02.6]} 53. Ke6 {[%clk 0:00:18.2]} 53... Rxh5 {[%clk
0:00:03.5]} 54. Rxc6 {[%clk 0:00:17.7]} 54... Kg8 {[%clk 0:00:01.4]} 55. Rc8+
{[%clk 0:00:17.5]} 55... Kh7 {[%clk 0:00:01.4]} 56. f7 {[%clk 0:00:17.5]} 1-0